fUSD/lending_fUSD_20251217
["ID","MTS","AMOUNT","RATE_DAILY","PERIOD"]
[398871216,1765943442431,-500.0,0.00016999,2]
[398871217,1765943442440,-1926524.01454623,0.00017,2]
[398871240,1765943444620,-617.05038201,0.00015436,2]
[398871241,1765943444652,-245.94961799,0.00015436,2]
[398871242,1765943444661,-307.69836438,0.000159,2]
[398871243,1765943444693,-1372.94995013,0.000159,2]
[398871244,1765943444825,-1399.62571944,0.000159,2]
[398871245,1765943444835,-226784.58689005,0.00017,2]
[398871246,1765943444846,-250.0,0.00017,2]
[398871247,1765943444856,-122.52642427,0.00017,2]
[398871248,1765943444927,-28.47357573,0.00017,2]
[398871249,1765943444936,-151.0,0.00017,2]
[398871250,1765943444946,-151.0,0.00017,2]
[398871251,1765943444956,-224.357557,0.00017,2]
[398871252,1765943444965,-151.0,0.00017,2]
[398871253,1765943444975,-179.480404,0.00017,2]
[398871254,1765943444984,-179.480404,0.00017,2]
[398871255,1765943444993,-179.480404,0.00017,2]
[398871256,1765943445003,-179.480404,0.00017,2]
[398871257,1765943445012,-487.102918,0.00017,2]
[398871258,1765943445022,-487.102918,0.00017,2]
[398871259,1765943445031,-141.09538038,0.00017,2]
[398871260,1765943448113,-151.05,0.00014273,2]
[398871261,1765943448123,-217.38388413,0.00015048,2]
[398871262,1765943448132,-500.0,0.00015048,2]
[398871263,1765943448141,-389.53228361,0.00015048,2]
[398871264,1765943448154,-346.00753762,0.00017,2]
[398871265,1765943448163,-487.102918,0.00017,2]
[398871266,1765943448172,-151.0,0.00017,2]
[398871267,1765943448183,-151.0,0.00017,2]
[398871268,1765943448193,-151.0,0.00017,2]
[398871269,1765943448202,-218.484897,0.00017,2]
[398871270,1765943448211,-151.0,0.00017,2]
[398871271,1765943448220,-218.484897,0.00017,2]
[398871272,1765943448229,-260.42702,0.00017,2]
[398871273,1765943448239,-218.484897,0.00017,2]
[398871274,1765943448249,-218.484897,0.00017,2]
[398871275,1765943448270,-1049.649287,0.00017,2]
[398871276,1765943448279,-1049.649287,0.00017,2]
[398871277,1765943448289,-1049.649287,0.00017,2]
[398871278,1765943448298,-1049.649287,0.00017,2]
[398871279,1765943448307,-151.748266,0.00017,2]
[398871280,1765943448323,-153.058219,0.00017,2]
[398871281,1765943448335,-151.0,0.00017,2]
[398871282,1765943448346,-151.0,0.00017,2]
[398871283,1765943448357,-390.999896,0.00017,2]
[398871284,1765943448368,-390.999896,0.00017,2]
[398871285,1765943448377,-390.999896,0.00017,2]
[398871286,1765943448387,-153.094338,0.00017,2]
[398871287,1765943448396,-390.999896,0.00017,2]
[398871288,1765943448406,-811.417131,0.00017,2]
[398871289,1765943448415,-811.417131,0.00017,2]
[398871290,1765943448424,-811.417131,0.00017,2]
[398871291,1765943448433,-811.417131,0.00017,2]
[398871292,1765943448443,-151.81547,0.00017,2]
[398871293,1765943448452,-151.0,0.00017,2]
[398871294,1765943448463,-151.0,0.00017,2]
[398871295,1765943448473,-151.0,0.00017,2]
[398871296,1765943448485,-3000.0,0.00017012,2]
[398871297,1765943448495,-358.77671532,0.00017012,2]
[398871298,1765943448505,-150.0,0.00017088,2]
[398871299,1765943448515,-150.0,0.00017088,2]
[398871300,1765943448525,-150.0,0.00017088,2]
[398871301,1765943448536,-150.0,0.00017088,2]
[398871302,1765943448546,-150.0,0.00017088,2]
[398871303,1765943448557,-151.76569214,0.00017088,2]
[398871304,1765943448567,-150.0,0.00017088,2]
[398871305,1765943448581,-153.04105057,0.00017088,2]
[398871306,1765943448589,-152.29741766,0.00017088,2]
[398871307,1765943448600,-152.85734819,0.00017088,2]
[398871308,1765943448609,-150.0,0.00017088,2]
[398871309,1765943448620,-16068.92491899,0.00017104,2]
[398871310,1765943448662,-738.14041366,0.00017104,2]
[398871311,1765943448673,-789.44390463,0.00017104,2]
[398871312,1765943448749,-781.47808843,0.00017104,2]
[398871313,1765943448761,-621.329991,0.00017104,2]
[398871314,1765943448787,-3195.383,0.00014991,2]
[398871315,1765943448796,-728.77857729,0.00017104,2]
[398871316,1765943448806,-2372.64818561,0.00017204,2]
[398871317,1765943448815,-745.97487494,0.00017225,2]
[398871318,1765943448824,-851.61403062,0.00017247,2]
[398871319,1765943448902,-500.0,0.00017247,2]
[398871320,1765943451308,-3080.27403395,0.000159,2]
[398871321,1765943451318,-460.13484067,0.000169,2]
[398871322,1765943451327,-8586.71402478,0.00017247,2]
[398871323,1765943451376,-24399.12167708,0.00017247,2]
[398871324,1765943451385,-151.0,0.00017257,2]
[398871325,1765943451395,-742.06,0.0001726,3]
[398871326,1765943451404,-34680.82954633,0.0001726,2]
[398871327,1765943451413,-600.0,0.0001726,2]
[398871328,1765943451424,-500.0,0.00017264,2]
[398871329,1765943451433,-1118.77,0.00017264,2]
[398871330,1765943451442,-1000.0,0.00017264,2]
[398871331,1765943451453,-541.13548811,0.00017264,2]
[398871332,1765943451463,-729.17576217,0.00017264,2]
[398871333,1765943451472,-1629.62996497,0.00017264,2]
[398871334,1765943451482,-2500.0,0.00017264,2]
[398871335,1765943451491,-2500.0,0.00017264,2]
[398871336,1765943451500,-150.0,0.00017278,2]
[398871337,1765943451510,-150.0,0.00017278,2]
[398871338,1765943451519,-150.0,0.00017325,2]
[398871339,1765943451529,-150.0,0.00017325,2]
[398871340,1765943451538,-166.66,0.00017361,2]
[398871341,1765943451548,-500.0,0.00017374,2]
[398871342,1765943451557,-200.0,0.00017374,2]
[398871343,1765943451567,-500.0,0.00017384,2]
[398871344,1765943451581,-866.0,0.00017396,2]
[398871345,1765943451591,-150.0,0.00017467,2]
[398871346,1765943451601,-150.0,0.00017467,2]
[398871347,1765943451611,-150.0,0.00017467,2]
[398871348,1765943451622,-150.0,0.00017467,2]
[398871349,1765943451633,-742.06,0.00017534,4]
[398871350,1765943451642,-600.0,0.00017534,2]
[398871351,1765943451655,-1118.77,0.00017538,2]
[398871352,1765943451664,-300.0,0.00017551,2]
[398871353,1765943451675,-241.17974472,0.00017551,2]
[398871354,1765943451686,-1000.0,0.00017551,2]
[398871355,1765943451695,-1000.0,0.00017551,2]
[398871356,1765943451705,-1000.0,0.00017551,2]
[398871357,1765943451716,-1000.0,0.00017551,2]
[398871358,1765943451725,-2000.0,0.00017551,2]
[398871359,1765943451734,-1000.0,0.00017551,2]
[398871360,1765943451744,-2000.0,0.00017551,2]
[398871361,1765943451755,-500.0,0.00017551,2]
[398871362,1765943451765,-201.93286099,0.00017551,2]
[398871363,1765943451775,-2000.0,0.00017551,2]
[398871364,1765943451783,-500.0,0.00017551,2]
[398871365,1765943451793,-1000.0,0.00017551,2]
[398871366,1765943451802,-2000.0,0.00017551,2]
[398871367,1765943451811,-500.0,0.00017551,2]
[398871368,1765943451820,-1000.0,0.00017551,2]
[398871369,1765943451830,-2000.0,0.00017551,2]
[398871370,1765943451841,-500.0,0.00017551,2]
[398871371,1765943451851,-1000.0,0.00017551,2]
[398871372,1765943451861,-2000.0,0.00017551,2]
[398871373,1765943451869,-500.0,0.00017551,2]
[398871374,1765943451878,-1000.0,0.00017551,2]
[398871375,1765943451890,-2000.0,0.00017551,2]
[398871376,1765943451900,-500.0,0.00017551,2]
[398871377,1765943451911,-1000.0,0.00017551,2]
[398871378,1765943451920,-2000.0,0.00017551,2]
[398871379,1765943451930,-500.0,0.00017551,2]
[398871380,1765943451939,-1000.0,0.00017551,2]
[398871381,1765943451948,-2000.0,0.00017551,2]
[398871382,1765943451958,-376.17527144,0.00017551,2]
[398871383,1765943451967,-1000.0,0.00017551,2]
[398871384,1765943451978,-2000.0,0.00017551,2]
[398871385,1765943451988,-2000.0,0.00017551,2]
[398871386,1765943451999,-2000.0,0.00017551,2]
[398871387,1765943452010,-578.20924308,0.00017551,2]
[398871388,1765943452020,-151.0,0.00017551,2]
[398871389,1765943452030,-720.28700319,0.00017551,2]
[398871390,1765943452039,-156.587,0.00017551,2]
[398871391,1765943452050,-162.380719,0.00017551,2]
[398871392,1765943452059,-153.06755145,0.00017551,2]
[398871393,1765943452069,-620.0,0.00017551,2]
[398871394,1765943452079,-500.0,0.00017551,2]
[398871395,1765943452089,-500.0,0.00017551,2]
[398871396,1765943452100,-500.0,0.00017551,2]
[398871397,1765943452111,-553.64373807,0.00017551,2]
[398871398,1765943452122,-500.0,0.00017551,2]
[398871399,1765943452132,-151.31813257,0.00017551,2]
[398871400,1765943452141,-151.0,0.00017551,2]
[398871401,1765943452151,-500.0,0.00017551,2]
[398871402,1765943452160,-500.0,0.00017551,2]
[398871403,1765943452170,-500.0,0.00017551,2]
[398871404,1765943452180,-500.0,0.00017551,2]
[398871405,1765943452189,-500.0,0.00017551,2]
[398871406,1765943452199,-500.0,0.00017551,2]
[398871407,1765943452209,-500.0,0.00017551,2]
[398871408,1765943452218,-500.0,0.00017551,2]
[398871409,1765943452227,-500.0,0.00017551,2]
[398871410,1765943452237,-500.0,0.00017551,2]
[398871411,1765943452246,-500.0,0.00017551,2]
[398871412,1765943452255,-500.0,0.00017551,2]
[398871413,1765943452264,-250.0,0.00017551,2]
[398871414,1765943452274,-250.0,0.00017551,2]
[398871415,1765943452284,-250.0,0.00017551,2]
[398871416,1765943452294,-250.0,0.00017551,2]
[398871417,1765943452304,-304.65222692,0.00017551,2]
[398871418,1765943452315,-250.0,0.00017551,2]
[398871419,1765943452326,-250.0,0.00017551,2]
[398871420,1765943452337,-335.01984391,0.00017551,2]
[398871421,1765943452347,-150.0,0.00017562,2]
[398871422,1765943452356,-150.0,0.00017562,2]
[398871423,1765943452365,-843.0,0.00017571,2]
[398871424,1765943452375,-1000.0,0.000176,2]
[398871425,1765943452386,-3453.0,0.00017602,2]
[398871426,1765943452395,-614.984,0.00017602,2]
[398871427,1765943452404,-1325.774,0.00017602,2]
[398871428,1765943452415,-1607.0,0.00017602,2]
[398871429,1765943452424,-571.135,0.00017602,2]
[398871430,1765943452434,-1261.0,0.00017602,2]
[398871431,1765943452446,-150.0,0.00017602,2]
[398871432,1765943452456,-6524.0,0.00017602,2]
[398871433,1765943452465,-581.406,0.00017602,2]
[398871434,1765943452474,-4799.0,0.00017602,2]
[398871435,1765943452483,-2427.0,0.00017602,2]
[398871436,1765943452492,-258.66,0.00017657,2]
[398871437,1765943452501,-150.0,0.00017657,2]
[398871438,1765943452510,-150.0,0.00017657,2]
[398871439,1765943452519,-34337.44973248,0.0001766,2]
[398871440,1765943452530,-34680.82954633,0.0001767,2]
[398871441,1765943452539,-2351.0,0.0001769,2]
[398871442,1765943452548,-150.0,0.00017721,2]
[398871443,1765943452557,-3780.74,0.00017728,2]
[398871444,1765943452566,-587.0,0.00017757,2]
[398871445,1765943452898,-2372.64818561,0.00017769,2]
[398871446,1765943452909,-227.82,0.00017779,2]
[398871447,1765943452918,-745.97487494,0.00017783,2]
[398871448,1765943452927,-843.0,0.00017783,2]
[398871449,1765943452936,-250.0,0.00017799,2]
[398871450,1765943452946,-150.0,0.000178,2]
[398871451,1765943452955,-150.0,0.000178,2]
[398871452,1765943452965,-2000.0,0.000178,2]
[398871453,1765943452975,-742.06,0.00017808,5]
[398871454,1765943452985,-600.0,0.00017808,2]
[398871455,1765943452995,-1118.77,0.00017812,2]
[398871456,1765943453006,-1500.0,0.00017812,2]
[398871457,1765943453015,-1163.24067916,0.00017812,2]
[398871458,1765943453024,-150.0,0.00017847,2]
[398871459,1765943453033,-150.0,0.00017847,2]
[398871460,1765943453043,-150.0,0.00017847,2]
[398871461,1765943453052,-150.0,0.00017847,2]
[398871462,1765943453063,-843.0,0.00017865,2]
[398871463,1765943453072,-166.66,0.00017882,2]
[398871464,1765943453081,-167.0,0.000179,2]
[398871465,1765943453091,-167.0,0.000179,2]
[398871466,1765943453100,-487.47228728,0.000179,2]
[398871467,1765943453110,-219.63809581,0.000179,2]
[398871468,1765943453120,-207.4,0.00017921,2]
[398871469,1765943453129,-500.0,0.00017922,2]
[398871470,1765943453137,-200.0,0.00017922,2]
[398871471,1765943453146,-1600.0,0.00017949,2]
[398871472,1765943453155,-500.0,0.00017955,2]
[398871473,1765943453165,-248.54,0.00017984,2]
[398871474,1765943453174,-150.0,0.00018037,2]
[398871475,1765943453184,-150.0,0.00018037,2]
[398871476,1765943453193,-150.0,0.00018037,2]
[398871477,1765943453203,-150.0,0.00018037,2]
[398871478,1765943453213,-639.0,0.00018058,2]
[398871479,1765943453222,-34337.44973248,0.00018074,2]
[398871480,1765943453232,-34680.82954633,0.0001808,2]
[398871481,1765943453241,-742.06,0.00018082,6]
[398871482,1765943453251,-151.86679603,0.00018082,2]
[398871483,1765943453260,-600.0,0.00018082,2]
[398871484,1765943453270,-1000.0,0.00018082,2]
[398871485,1765943453279,-1118.80867302,0.00018086,2]
[398871486,1765943453288,-209.40437684,0.00018099,2]
[398871487,1765943453298,-574.12855637,0.00018099,2]
[398871488,1765943453308,-252.0,0.00018112,2]
[398871489,1765943453318,-252.0,0.00018144,2]
[398871490,1765943453327,-252.0,0.0001816,2]
[398871491,1765943453336,-150.0,0.00018227,2]
[398871492,1765943453346,-150.0,0.00018227,2]
[398871493,1765943453355,-150.0,0.00018227,2]
[398871494,1765943453365,-150.0,0.00018227,2]
[398871495,1765943453374,-5884.0,0.00018233,2]
[398871496,1765943453383,-150.0,0.00018274,2]
[398871497,1765943453394,-150.0,0.00018274,2]
[398871498,1765943453403,-258.66,0.00018328,2]
[398871499,1765943453412,-2372.64818561,0.00018335,2]
[398871500,1765943453422,-745.97487494,0.00018342,2]
[398871501,1765943453431,-252.0,0.00018346,2]
[398871502,1765943453441,-150.0,0.00018353,2]
[398871503,1765943453450,-742.06,0.00018356,7]
[398871504,1765943453460,-600.0,0.00018356,2]
[398871505,1765943453469,-220.61363379,0.00018367,2]
[398871506,1765943453479,-252.0,0.00018395,2]
[398871507,1765943453488,-1306.0,0.000184,2]
[398871508,1765943453498,-166.66,0.00018404,2]
[398871509,1765943453508,-252.0,0.00018411,2]
[398871510,1765943453518,-150.0,0.00018417,2]
[398871511,1765943453528,-150.0,0.00018417,2]
[398871512,1765943453537,-639.0,0.00018421,2]
[398871513,1765943453547,-252.0,0.00018449,2]
[398871514,1765943453557,-8670.0,0.00018463,7]
[398871515,1765943453566,-500.0,0.0001847,2]
[398871516,1765943453580,-200.0,0.0001847,2]
[398871517,1765943453589,-34337.44973248,0.00018487,2]
[398871518,1765943453599,-34680.82954633,0.0001849,2]
[398871519,1765943453608,-150.0,0.00018512,2]
[398871520,1765943453618,-150.0,0.00018512,2]
[398871521,1765943453627,-227.82,0.00018559,2]
[398871522,1765943453637,-1000.0,0.00018566,2]
[398871523,1765943453646,-252.0,0.0001859,2]
[398871524,1765943453656,-1009.0,0.000186,2]
[398871525,1765943453667,-150.0,0.00018607,2]
[398871526,1765943453676,-150.0,0.00018607,2]
[398871527,1765943453687,-150.0,0.00018607,2]
[398871528,1765943453697,-150.0,0.00018607,2]
[398871529,1765943453706,-5582.53149552,0.0001862,2]
[398871530,1765943453716,-150.0,0.0001863,2]
[398871531,1765943453726,-500.0,0.0001863,2]
[398871532,1765943453735,-500.0,0.0001863,2]
[398871533,1765943453744,-150.0,0.0001863,2]
[398871534,1765943453754,-150.21496086,0.0001863,2]
[398871535,1765943453763,-150.45237691,0.0001863,2]
[398871536,1765943453772,-150.0,0.0001863,2]
[398871537,1765943453781,-211.09144714,0.0001863,2]
[398871538,1765943453790,-150.0,0.0001863,2]
[398871539,1765943453800,-500.0,0.0001863,2]
[398871540,1765943453810,-150.0,0.0001863,2]
[398871541,1765943453819,-150.0,0.0001863,2]
[398871542,1765943453828,-150.0,0.0001863,2]
[398871543,1765943453838,-500.0,0.0001863,2]
[398871544,1765943453847,-150.0,0.0001863,2]
[398871545,1765943453858,-150.0,0.0001863,2]
[398871546,1765943453867,-500.0,0.0001863,2]
[398871547,1765943453876,-500.0,0.0001863,2]
[398871548,1765943453885,-150.0,0.0001863,2]
[398871549,1765943453895,-500.0,0.0001863,2]
[398871550,1765943453904,-500.0,0.0001863,2]
[398871551,1765943453914,-500.0,0.0001863,2]
[398871552,1765943453923,-150.81116923,0.0001863,2]
[398871553,1765943453933,-500.0,0.0001863,2]
[398871554,1765943453943,-500.0,0.0001863,2]
[398871555,1765943453953,-150.52720493,0.0001863,2]
[398871556,1765943453962,-500.0,0.0001863,2]
[398871557,1765943453972,-151.0,0.0001863,2]
[398871558,1765943453981,-151.0,0.0001863,2]
[398871559,1765943453991,-218.484897,0.0001863,2]
[398871560,1765943454000,-151.0,0.0001863,2]
[398871561,1765943454012,-218.484897,0.0001863,2]
[398871562,1765943454021,-218.484897,0.0001863,2]
[398871563,1765943454032,-218.484897,0.0001863,2]
[398871564,1765943454043,-1049.649287,0.0001863,2]
[398871565,1765943454053,-1049.649287,0.0001863,2]
[398871566,1765943454063,-1049.649287,0.0001863,2]
[398871567,1765943454074,-1049.649287,0.0001863,2]
[398871568,1765943454083,-742.06,0.0001863,8]
[398871569,1765943454093,-500.0,0.0001863,2]
[398871570,1765943454102,-500.0,0.0001863,2]
[398871571,1765943454112,-150.0,0.0001863,2]
[398871572,1765943454122,-150.0,0.0001863,2]
[398871573,1765943454132,-500.0,0.0001863,2]
[398871574,1765943454141,-150.0,0.0001863,2]
[398871575,1765943454150,-150.0,0.0001863,2]
[398871576,1765943454159,-1408.0,0.0001863,2]
[398871577,1765943454169,-150.0,0.0001863,2]
[398871578,1765943454178,-500.0,0.0001863,2]
[398871579,1765943454188,-500.0,0.0001863,2]
[398871580,1765943454197,-500.0,0.0001863,2]
[398871581,1765943454206,-600.0,0.0001863,2]
[398871582,1765943454216,-202.31236251,0.00018647,2]
[398871583,1765943454225,-595.37131296,0.00018647,2]
[398871584,1765943454235,-1473.0,0.0001869,2]
[398871585,1765943454244,-86635.9823577,0.00018703,2]
[398871586,1765943454253,-248.54,0.00018707,2]
[398871587,1765943454262,-3156.3583205,0.00018726,2]
[398871588,1765943454271,-252.0,0.00018734,2]
[398871589,1765943454283,-152.0,0.00018742,3]
[398871590,1765943454293,-150.0,0.00018749,2]
[398871591,1765943454302,-150.0,0.00018749,2]
[398871592,1765943454311,-151.0,0.00018751,2]
[398871593,1765943454321,-153.501941,0.0001876,2]
[398871594,1765943454330,-179.480404,0.0001876,2]
[398871595,1765943454339,-179.480404,0.0001876,2]
[398871596,1765943454348,-179.480404,0.0001876,2]
[398871597,1765943454357,-179.480404,0.0001876,2]
[398871598,1765943454366,-487.102918,0.0001876,2]
[398871599,1765943454375,-487.102918,0.0001876,2]
[398871600,1765943454384,-487.102918,0.0001876,2]
[398871601,1765943454393,-487.102918,0.0001876,2]
[398871602,1765943454402,-1000.0,0.0001876,2]
[398871603,1765943454411,-150.91559329,0.00018767,2]
[398871604,1765943454420,-500.0,0.00018767,2]
[398871605,1765943454429,-500.0,0.00018767,2]
[398871606,1765943454439,-237.57883779,0.00018767,2]
[398871607,1765943454448,-150.0,0.00018767,2]
[398871608,1765943454459,-150.0,0.00018767,2]
[398871609,1765943454469,-600.0,0.00018767,2]
[398871610,1765943454478,-150.0,0.00018767,2]
[398871611,1765943454487,-201.86376446,0.00018767,2]
[398871612,1765943454497,-500.0,0.00018767,2]
[398871613,1765943454506,-150.0,0.00018767,2]
[398871614,1765943454515,-150.0,0.00018767,2]
[398871615,1765943454524,-500.0,0.00018767,2]
[398871616,1765943454533,-500.0,0.00018767,2]
[398871617,1765943454542,-150.0,0.00018767,2]
[398871618,1765943454551,-500.0,0.00018767,2]
[398871619,1765943454561,-500.0,0.00018767,2]
[398871620,1765943454571,-500.0,0.00018767,2]
[398871621,1765943454584,-500.0,0.00018767,2]
[398871622,1765943454594,-500.0,0.00018767,2]
[398871623,1765943454604,-500.0,0.00018767,2]
[398871624,1765943454615,-500.0,0.00018767,2]
[398871625,1765943454624,-500.0,0.00018767,2]
[398871626,1765943454633,-150.0,0.00018767,2]
[398871627,1765943454642,-500.0,0.00018767,2]
[398871628,1765943454652,-150.0,0.00018767,2]
[398871629,1765943454661,-1408.0,0.00018767,2]
[398871630,1765943454670,-150.0,0.00018767,2]
[398871631,1765943454679,-500.0,0.00018767,2]
[398871632,1765943454689,-500.0,0.00018767,2]
[398871633,1765943454698,-500.0,0.00018767,2]
[398871634,1765943454707,-252.0,0.00018769,2]
[398871635,1765943454716,-150.0,0.00018796,2]
[398871636,1765943454725,-150.0,0.00018796,2]
[398871637,1765943454734,-151.0,0.0001881,2]
[398871638,1765943454743,-151.0,0.0001881,2]
[398871639,1765943454752,-1731.99754077,0.0001881,2]
[398871640,1765943455398,-657.5104487,0.0001881,2]
[398871641,1765943455766,-8.51073976,0.0001881,2]
[398871642,1765943455778,-1273.35928114,0.0001881,2]
[398871643,1765943455803,-200.42980963,0.0001881,2]
[398871644,1765943455813,-154.04458374,0.00018811,2]
[398871645,1765943455823,-500.0,0.00018813,2]
[398871646,1765943455833,-811.417131,0.00018814,2]
[398871647,1765943455842,-811.417131,0.00018814,2]
[398871648,1765943455852,-222.69134463,0.00018814,2]
[398871654,1765944402795,156.75,6.913e-05,2]
[398871655,1765944402964,156.75,7.32e-05,2]
[398871656,1765944403203,156.75,7.726e-05,2]
[398871657,1765944403330,156.75,8.133e-05,2]
[398871658,1765944403502,156.75,8.54e-05,2]
[398871659,1765944403690,156.75,8.946e-05,2]
[398871660,1765944403870,60.17925213,9.353e-05,2]
[398871661,1765944403893,96.57074787,9.353e-05,2]
[398871662,1765944404237,156.75,9.76e-05,2]
[398871663,1765944404394,156.75,0.00010166,2]
[398871664,1765944404584,156.75,0.00010573,2]
[398871665,1765944404859,156.75,0.0001098,2]
[398871666,1765944405125,156.75,0.00011386,2]
[398871667,1765944405448,120.35850426,0.00011793,2]
[398871668,1765944405474,36.39149574,0.00011793,2]
[398871669,1765944405729,156.75,0.000122,2]
[398871670,1765944406000,156.75,0.00012606,2]
[398871671,1765944411882,150.0,0.00023,120]
[398871680,1765944632008,-156.75,0.00013013,2]
[398871681,1765944632018,-250.0,0.00013216,2]
[398871682,1765944632027,-156.75,0.0001342,2]
[398871683,1765944632036,-166.73,0.00013482,2]
[398871684,1765944632045,-1.48018286,0.00013482,2]
[398871685,1765944632056,-498.51981714,0.00013482,2]
[398871686,1765944632065,-45.50018286,0.00013482,2]
[398871687,1765944632075,-125.24669651,0.00013482,2]
[398871688,1765944632084,-1000.0,0.00013604,2]
[398871689,1765944632093,-45.90717725,0.00013825,2]
[398871690,1765944632105,-322.34282275,0.00013825,2]
[398871691,1765944632115,-156.75,0.00013826,2]
[398871692,1765944632124,-465.04154765,0.000139,2]
[398871693,1765944632179,-699.10213988,0.000139,2]
[398871694,1765944632191,-706.91631247,0.000139,2]
[398871695,1765944632204,-1200.0,0.00013966,2]
[398871696,1765944632213,-300.0,0.00013966,2]
[398871697,1765944632222,-300.0,0.00013966,2]
[398871698,1765944632231,-1200.0,0.00013966,2]
[398871699,1765944632240,-500.0,0.00013967,2]
[398871700,1765944632250,-500.0,0.00013967,2]
[398871701,1765944632259,-126.42758833,0.00013967,2]
[398871702,1765944632271,-71.89359705,0.00013967,2]
[398871703,1765944632280,-487.35559165,0.00013967,2]
[398871704,1765944632295,-12.64440835,0.00013967,2]
[398871705,1765944632304,-248.35559151,0.00013967,2]
[398871706,1765944632315,-251.64440849,0.00013967,2]
[398871707,1765944632324,-157.58665323,0.00013967,2]
[398871708,1765944632333,-28.20570328,0.00013967,2]
[398871709,1765944632449,-471.79429672,0.00013967,2]
[398871710,1765944632458,-178.14848927,0.00013967,2]
[398871711,1765944632470,-321.85151073,0.00013967,2]
[398871712,1765944632479,-507.81620349,0.00013967,2]
[398871713,1765944632489,-500.0,0.00013967,2]
[398871714,1765944632500,-150.0,0.00013967,2]
[398871715,1765944632509,-14654.74,0.00013968,2]
[398871716,1765944632518,-228.79,0.00014107,2]
[398871717,1765944632527,-11789.15,0.0001413,2]
[398871718,1765944632536,-553.86,0.0001414,2]
[398871719,1765944632545,-3240.0,0.00014156,2]
[398871720,1765944632555,-175.017,0.00014273,2]
[398871721,1765944632564,-501.76123807,0.00014273,2]
[398871722,1765944632573,-500.0,0.00014273,2]
[398871723,1765944632584,-500.0,0.00014273,2]
[398871724,1765944632593,-502.93181499,0.00014273,2]
[398871725,1765944632604,-500.0,0.00014273,2]
[398871726,1765944632614,-500.0,0.00014273,2]
[398871727,1765944632623,-500.0,0.00014273,2]
[398871728,1765944632633,-500.0,0.00014273,2]
[398871729,1765944632643,-500.0,0.00014273,2]
[398871730,1765944632653,-485.12,0.00014273,2]
[398871731,1765944632662,-311.44942218,0.00014313,2]
[398871732,1765944632672,-317.0,0.00014313,2]
[398871733,1765944632682,-250.0,0.00014314,2]
[398871734,1765944632691,-3637.32,0.00014323,2]
[398871735,1765944632701,-714.0,0.00014341,2]
[398871736,1765944632710,-3804.02,0.00014504,2]
[398871737,1765944632719,-999.99,0.00014504,2]
[398871738,1765944632728,-150.99,0.00014504,2]
[398871739,1765944632738,-9999.99,0.00014504,2]
[398871740,1765944632747,-18652.66234564,0.00014681,2]
[398871741,1765944632759,-8836.06550957,0.00014681,2]
[398871742,1765944632770,-44519.00668676,0.00014681,2]
[398871744,1765944638463,-628.57848671,0.00014504,2]
[398871745,1765944638474,-10971.5462872,0.00014681,2]
[398871746,1765944638645,-15461.45128427,0.00014681,2]
[398871747,1765944638657,-661559.26788656,0.00014681,2]
[398871748,1765944638667,-235.8268,0.00014781,2]
[398871749,1765944638676,-43965.9664,0.00014781,2]
[398871751,1765944638685,-20602.46983956,0.00014791,2]
[398871753,1765944638694,-1000.0,0.00014821,2]